fUSD/lending_fUSD_20260601
["ID","MTS","AMOUNT","RATE_DAILY","PERIOD"]
[423624946,1780263070000,-200.0,0.00039331,30]
[423624945,1780263070000,-7407.141672,0.00039331,30]
[423624947,1780263070000,-152.0,0.00039331,30]
[423624948,1780263070000,-537.6845,0.00039331,30]
[423624952,1780263070000,-151.0,0.00039331,30]
[423624950,1780263070000,-1613.0535,0.00039331,30]
[423624951,1780263070000,-559.19188,0.00039331,30]
[423624949,1780263070000,-200.0,0.00039331,30]
[423624967,1780263070000,-23201.7624306,0.00039359,2]
[423624954,1780263070000,-500.0,0.00039331,30]
[423624958,1780263070000,-153.32827126,0.00039332,120]
[423624956,1780263070000,-274.93219584,0.00039331,30]
[423624955,1780263070000,-537.6845,0.00039331,30]
[423624957,1780263070000,-151.0,0.00039331,30]
[423624960,1780263070000,-150.33094002,0.00039332,120]
[423624961,1780263070000,-178.090746,0.00039341,120]
[423624965,1780263070000,-393.0,0.00039357,2]
[423624963,1780263070000,-393.0,0.00039343,2]
[423624962,1780263070000,-178.090746,0.00039341,120]
[423624969,1780263070000,-5000.0,0.00039361,2]
[423624970,1780263070000,-250.0,0.00039361,2]
[423624959,1780263070000,-165.00137927,0.00039332,120]
[423624953,1780263070000,-162.380719,0.00039331,30]
[423624997,1780263070000,-163.0,0.0003942,120]
[423625001,1780263070000,-156.0,0.00039431,120]
[423625031,1780263070000,-152.0,0.00039495,30]
[423625032,1780263070000,-518.5,0.00039495,30]
[423625035,1780263070000,-539.24,0.00039495,30]
[423625029,1780263070000,-7142.856,0.00039495,30]
[423625034,1780263070000,-151.0,0.00039495,30]
[423625028,1780263070000,-642.94,0.00039495,30]
[423625030,1780263070000,-200.0,0.00039495,30]
[423625027,1780263070000,-3111.0,0.00039495,30]
[423625033,1780263070000,-200.0,0.00039495,30]
[423625045,1780263070000,-151.0,0.00039496,14]
[423625043,1780263070000,-386.0,0.00039496,2]
[423625024,1780263070000,-151.0,0.00039495,30]
[423625039,1780263070000,-500.0,0.00039495,30]
[423625040,1780263070000,-518.5,0.00039495,30]
[423625042,1780263070000,-151.0,0.00039496,14]
[423625049,1780263070000,-2000.0,0.00039498,70]
[423625044,1780263070000,-151.0,0.00039496,14]
[423625046,1780263070000,-2000.0,0.00039498,11]
[423625038,1780263070000,-260.287,0.00039495,30]
[423625036,1780263070000,-1555.5,0.00039495,30]
[423625041,1780263070000,-151.0,0.00039495,30]
[423625048,1780263070000,-2000.0,0.00039498,75]
[423625050,1780263070000,-302.493871,0.00039498,33]
[423624995,1780263070000,-163.0,0.0003942,120]
[423625047,1780263070000,-2000.0,0.00039498,90]
[423625026,1780263070000,-156.587,0.00039495,30]
[423625037,1780263070000,-156.587,0.00039495,30]
[423625012,1780263070000,-393.0,0.00039448,2]
[423624998,1780263070000,-393.0,0.00039426,2]
[423625025,1780263070000,-165.92,0.00039495,30]
[423624999,1780263070000,-1676.44,0.00039431,2]
[423625009,1780263070000,-393.0,0.00039435,2]
[423625000,1780263070000,-545.0,0.00039431,120]
[423625008,1780263070000,-763.1,0.00039431,60]
[423625007,1780263070000,-4648.3,0.00039431,60]
[423625002,1780263070000,-1188.0,0.00039431,120]
[423625010,1780263070000,-174.0,0.00039437,2]
[423625004,1780263070000,-1247.367113,0.00039431,30]
[423625005,1780263070000,-1247.367113,0.00039431,30]
[423625006,1780263070000,-1247.36711,0.00039431,30]
[423625003,1780263070000,-1247.367113,0.00039431,30]
[423625016,1780263070000,-400.0,0.0003947,2]
[423625011,1780263070000,-393.0,0.00039447,2]
[423625013,1780263070000,-393.0,0.00039449,2]
[423625023,1780263070000,-1025.38131837,0.00039495,30]
[423625020,1780263070000,-518.5,0.00039495,30]
[423625017,1780263070000,-300.22473343,0.0003947,2]
[423625022,1780263070000,-1068.11,0.00039495,30]
[423625018,1780263070000,-400.0,0.0003947,2]
[423625014,1780263070000,-386.0,0.00039451,2]
[423625021,1780263070000,-156.587,0.00039495,30]
[423625019,1780263070000,-434831.71375779,0.0003949,2]
[423625015,1780263070000,-393.0,0.00039452,2]
[423625094,1780263071000,-944.988119,0.00039499,30]
[423625082,1780263071000,-151.0,0.00039499,30]
[423625095,1780263071000,-944.988119,0.00039499,30]
[423625100,1780263071000,-944.988119,0.00039499,30]
[423625093,1780263071000,-944.988119,0.00039499,30]
[423625092,1780263071000,-293.065152,0.00039499,30]
[423625085,1780263071000,-151.0,0.00039499,30]
[423625081,1780263071000,-1398.231401,0.00039499,30]
[423625086,1780263071000,-153.491733,0.00039499,30]
[423625084,1780263071000,-175.25781,0.00039499,30]
[423625083,1780263071000,-151.0,0.00039499,30]
[423625097,1780263071000,-944.988119,0.00039499,30]
[423625090,1780263071000,-151.0,0.00039499,30]
[423625101,1780263071000,-944.988119,0.00039499,30]
[423625108,1780263071000,-944.988124,0.00039499,30]
[423625096,1780263071000,-944.988119,0.00039499,30]
[423625091,1780263071000,-151.0,0.00039499,30]
[423625098,1780263071000,-944.988119,0.00039499,30]
[423625113,1780263071000,-151.0,0.00039499,30]
[423625114,1780263071000,-151.0,0.00039499,30]
[423625103,1780263071000,-944.988119,0.00039499,30]
[423625102,1780263071000,-944.988119,0.00039499,30]
[423625115,1780263071000,-151.0,0.00039499,30]
[423625104,1780263071000,-944.988119,0.00039499,30]
[423625105,1780263071000,-944.988119,0.00039499,30]
[423625107,1780263071000,-944.988119,0.00039499,30]
[423625106,1780263071000,-944.988119,0.00039499,30]
[423625111,1780263071000,-151.0,0.00039499,30]
[423625077,1780263071000,-1398.231395,0.00039499,30]
[423625099,1780263071000,-944.988119,0.00039499,30]
[423625087,1780263071000,-151.0,0.00039499,30]
[423625060,1780263071000,-151.0,0.00039499,30]
[423625088,1780263071000,-151.0,0.00039499,30]
[423625110,1780263071000,-151.0,0.00039499,30]
[423625051,1780263071000,-151.0,0.00039499,30]
[423625062,1780263071000,-151.0,0.00039499,30]
[423625061,1780263071000,-151.0,0.00039499,30]
[423625052,1780263071000,-257.569886,0.00039499,30]
[423625056,1780263071000,-151.0,0.00039499,30]
[423625054,1780263071000,-151.0,0.00039499,30]
[423625053,1780263071000,-151.0,0.00039499,30]
[423625055,1780263071000,-151.0,0.00039499,30]
[423625057,1780263071000,-151.0,0.00039499,30]
[423625059,1780263071000,-151.0,0.00039499,30]
[423625058,1780263071000,-151.0,0.00039499,30]
[423625063,1780263071000,-151.0,0.00039499,30]
[423625065,1780263071000,-151.0,0.00039499,30]
[423625066,1780263071000,-1398.231395,0.00039499,30]
[423625075,1780263071000,-1398.231395,0.00039499,30]
[423625067,1780263071000,-1398.231395,0.00039499,30]
[423625064,1780263071000,-151.0,0.00039499,30]
[423625076,1780263071000,-1398.231395,0.00039499,30]
[423625074,1780263071000,-1398.231395,0.00039499,30]
[423625071,1780263071000,-1398.231395,0.00039499,30]
[423625069,1780263071000,-1398.231395,0.00039499,30]
[423625068,1780263071000,-1398.231395,0.00039499,30]
[423625073,1780263071000,-1398.231395,0.00039499,30]
[423625070,1780263071000,-1398.231395,0.00039499,30]
[423625072,1780263071000,-1398.231395,0.00039499,30]
[423625089,1780263071000,-151.0,0.00039499,30]
[423625078,1780263071000,-1398.231395,0.00039499,30]
[423625080,1780263071000,-1398.231395,0.00039499,30]
[423625079,1780263071000,-1398.231395,0.00039499,30]
[423625112,1780263071000,-151.0,0.00039499,30]
[423625151,1780263071000,-861.71,0.00039499,120]
[423625117,1780263071000,-151.0,0.00039499,30]
[423625154,1780263071000,-861.71,0.00039499,120]
[423625150,1780263071000,-861.71,0.00039499,120]
[423625152,1780263071000,-861.71,0.00039499,120]
[423625148,1780263071000,-861.71,0.00039499,120]
[423625155,1780263071000,-861.71,0.00039499,120]
[423625164,1780263071000,-787.0,0.000395,30]
[423625162,1780263071000,-861.71,0.00039499,120]
[423625161,1780263071000,-861.71,0.00039499,120]
[423625167,1780263071000,-787.0,0.000395,30]
[423625166,1780263071000,-787.0,0.000395,30]
[423625158,1780263071000,-861.71,0.00039499,120]
[423625156,1780263071000,-861.71,0.00039499,120]
[423625163,1780263071000,-374.6,0.000395,14]
[423625159,1780263071000,-861.71,0.00039499,120]
[423625165,1780263071000,-787.0,0.000395,30]
[423625157,1780263071000,-861.71,0.00039499,120]
[423625160,1780263071000,-861.71,0.00039499,120]
[423625180,1780263071000,-160.0,0.000395,47]
[423625176,1780263071000,-160.0,0.000395,47]
[423625172,1780263071000,-787.0,0.000395,30]
[423625178,1780263071000,-160.0,0.000395,47]
[423625168,1780263071000,-787.0,0.000395,30]
[423625169,1780263071000,-787.0,0.000395,30]
[423625179,1780263071000,-160.0,0.000395,47]
[423625170,1780263071000,-787.0,0.000395,30]
[423625175,1780263071000,-160.0,0.000395,47]
[423625171,1780263071000,-787.0,0.000395,30]
[423625174,1780263071000,-772.0,0.000395,30]
[423625109,1780263071000,-151.0,0.00039499,30]
[423625142,1780263071000,-157.0,0.00039499,120]
[423625153,1780263071000,-861.71,0.00039499,120]
[423625173,1780263071000,-772.0,0.000395,30]
[423625145,1780263071000,-288.0,0.00039499,120]
[423625116,1780263071000,-151.0,0.00039499,30]
[423625127,1780263071000,-205.372533,0.00039499,30]
[423625119,1780263071000,-151.0,0.00039499,30]
[423625124,1780263071000,-301.384214,0.00039499,30]
[423625122,1780263071000,-205.372533,0.00039499,30]
[423625121,1780263071000,-205.372533,0.00039499,30]
[423625120,1780263071000,-151.0,0.00039499,30]
[423625123,1780263071000,-151.0,0.00039499,30]
[423625126,1780263071000,-151.0,0.00039499,30]
[423625125,1780263071000,-205.372533,0.00039499,30]
[423625129,1780263071000,-205.372533,0.00039499,30]
[423625139,1780263071000,-154.0,0.00039499,120]
[423625140,1780263071000,-383.0,0.00039499,120]
[423625128,1780263071000,-205.372533,0.00039499,30]
[423625118,1780263071000,-151.0,0.00039499,30]
[423625131,1780263071000,-205.372533,0.00039499,30]
[423625147,1780263071000,-861.7,0.00039499,120]
[423625130,1780263071000,-205.372533,0.00039499,30]
[423625149,1780263071000,-861.71,0.00039499,120]
[423625143,1780263071000,-158.0,0.00039499,120]
[423625144,1780263071000,-626.0,0.00039499,120]
[423625146,1780263071000,-186.0,0.00039499,120]
[423625141,1780263071000,-388.0,0.00039499,120]
[423625177,1780263071000,-160.0,0.000395,47]
[423625133,1780263071000,-205.372533,0.00039499,30]
[423625136,1780263071000,-2000.0,0.00039499,47]
[423625138,1780263071000,-193.0,0.00039499,120]
[423625134,1780263071000,-205.372533,0.00039499,30]
[423625135,1780263071000,-205.372524,0.00039499,30]
[423625132,1780263071000,-205.372533,0.00039499,30]
[423625137,1780263071000,-159.0,0.00039499,120]
[423625227,1780263072000,-500.0,0.00039511,2]
[423625221,1780263072000,-500.0,0.00039511,2]
[423625228,1780263072000,-500.0,0.00039511,2]
[423625225,1780263072000,-500.0,0.00039511,2]
[423625218,1780263072000,-500.0,0.00039511,2]
[423625213,1780263072000,-2000.0,0.00039509,34]
[423625217,1780263072000,-500.0,0.00039511,2]
[423625219,1780263072000,-500.0,0.00039511,2]
[423625210,1780263072000,-2103.75,0.00039507,60]
[423625208,1780263072000,-500.0,0.00039506,120]
[423625226,1780263072000,-500.0,0.00039511,2]
[423625220,1780263072000,-500.0,0.00039511,2]
[423625209,1780263072000,-602.56006381,0.00039506,120]
[423625238,1780263072000,-191.09056479,0.00039511,2]
[423625222,1780263072000,-500.0,0.00039511,2]
[423625224,1780263072000,-500.0,0.00039511,2]
[423625223,1780263072000,-500.0,0.00039511,2]
[423625230,1780263072000,-500.0,0.00039511,2]
[423625232,1780263072000,-500.0,0.00039511,2]
[423625239,1780263072000,-151.0,0.00039512,14]
[423625240,1780263072000,-500.0,0.00039514,2]
[423625231,1780263072000,-500.0,0.00039511,2]
[423625233,1780263072000,-500.0,0.00039511,2]
[423625234,1780263072000,-500.0,0.00039511,2]
[423625235,1780263072000,-500.0,0.00039511,2]
[423625236,1780263072000,-500.0,0.00039511,2]
[423625237,1780263072000,-295.66812534,0.00039511,2]
[423625212,1780263072000,-393.0,0.00039509,2]
[423625229,1780263072000,-500.0,0.00039511,2]
[423625207,1780263072000,-500.0,0.00039506,120]
[423625196,1780263072000,-500.0,0.00039506,120]
[423625214,1780263072000,-2000.0,0.0003951,2]
[423625241,1780263072000,-232.85955464,0.00039514,120]
[423625182,1780263072000,-217.66,0.000395,47]
[423625192,1780263072000,-1670.26108133,0.000395,2]
[423625189,1780263072000,-1778.77862703,0.000395,2]
[423625188,1780263072000,-1778.77862703,0.000395,2]
[423625185,1780263072000,-258.684995,0.000395,47]
[423625181,1780263072000,-160.0,0.000395,47]
[423625191,1780263072000,-2408.01128283,0.000395,2]
[423625184,1780263072000,-217.66,0.000395,47]
[423625183,1780263072000,-217.66,0.000395,47]
[423625187,1780263072000,-194.674,0.000395,40]
[423625186,1780263072000,-245.82,0.000395,20]
[423625190,1780263072000,-200.0,0.000395,18]
[423625204,1780263072000,-500.0,0.00039506,120]
[423625193,1780263072000,-1670.26108133,0.000395,2]
[423625195,1780263072000,-500.0,0.00039506,60]
[423625194,1780263072000,-500.0,0.00039506,30]
[423625198,1780263072000,-500.0,0.00039506,120]
[423625202,1780263072000,-500.0,0.00039506,120]
[423625203,1780263072000,-500.0,0.00039506,120]
[423625200,1780263072000,-500.0,0.00039506,120]
[423625199,1780263072000,-500.0,0.00039506,120]
[423625201,1780263072000,-500.0,0.00039506,120]
[423625205,1780263072000,-500.0,0.00039506,120]
[423625216,1780263072000,-2000.0,0.0003951,60]
[423625215,1780263072000,-2000.0,0.0003951,10]
[423625206,1780263072000,-500.0,0.00039506,120]
[423625211,1780263072000,-2000.0,0.00039507,14]
[423625197,1780263072000,-500.0,0.00039506,120]
[423625242,1780263072000,-500.0,0.00039514,30]
[423625269,1780263072000,-274.27353427,0.00039514,30]
[423625244,1780263072000,-1030.0,0.00039514,30]
[423625276,1780263072000,-500.0,0.00039514,30]
[423625275,1780263072000,-500.0,0.00039514,30]
[423625278,1780263072000,-554.85521661,0.00039514,30]
[423625277,1780263072000,-500.0,0.00039514,30]
[423625243,1780263072000,-151.0,0.00039514,30]
[423625291,1780263072000,-176.16,0.00039515,7]
[423625289,1780263072000,-271.01,0.00039515,7]
[423625292,1780263072000,-1173.74,0.00039527,7]
[423625287,1780263072000,-172.61954782,0.00039515,30]
[423625293,1780263072000,-500.0,0.0003953,30]
[423625282,1780263072000,-2000.0,0.00039514,20]
[423625283,1780263072000,-500.0,0.00039514,120]
[423625285,1780263072000,-200.0,0.00039515,2]
[423625284,1780263072000,-300.0,0.00039514,10]
[423625290,1780263072000,-203.26,0.00039515,2]
[423625288,1780263072000,-172.61954781,0.00039515,30]
[423625304,1780263072000,-157.00557815,0.00039539,30]
[423625306,1780263072000,-2000.0,0.00039539,115]
[423625294,1780263072000,-150.0,0.00039538,2]
[423625295,1780263072000,-150.0,0.00039539,6]
[423625305,1780263072000,-500.0,0.00039539,60]
[423625299,1780263072000,-1124.0,0.00039539,5]
[423625302,1780263072000,-503.19129414,0.00039539,60]
[423625301,1780263072000,-1300.0,0.00039539,60]
[423625297,1780263072000,-283.46,0.00039539,7]
[423625303,1780263072000,-500.0,0.00039539,30]
[423625296,1780263072000,-161.76,0.00039539,7]
[423625298,1780263072000,-472.31499264,0.00039539,30]
[423625300,1780263072000,-2110.0,0.00039539,2]
[423625270,1780263072000,-500.0,0.00039514,30]
[423625271,1780263072000,-500.0,0.00039514,30]
[423625286,1780263072000,-280.3872819,0.00039515,7]
[423625272,1780263072000,-151.0,0.00039514,30]
[423625255,1780263072000,-200.0,0.00039514,30]
[423625248,1780263072000,-499.64210972,0.00039514,30]
[423625249,1780263072000,-151.0,0.00039514,30]
[423625251,1780263072000,-220.0,0.00039514,30]
[423625245,1780263072000,-1000.0,0.00039514,30]
[423625246,1780263072000,-151.0,0.00039514,30]
[423625247,1780263072000,-160.0,0.00039514,30]
[423625281,1780263072000,-2000.0,0.00039514,120]
[423625250,1780263072000,-3000.0,0.00039514,30]
[423625254,1780263072000,-271.14165282,0.00039514,30]
[423625252,1780263072000,-620.0,0.00039514,30]
[423625258,1780263072000,-500.0,0.00039514,30]
[423625260,1780263072000,-200.0,0.00039514,30]
[423625256,1780263072000,-500.0,0.00039514,30]
[423625253,1780263072000,-6888.0,0.00039514,30]
[423625263,1780263072000,-151.0,0.00039514,30]
[423625257,1780263072000,-152.0,0.00039514,30]
[423625268,1780263072000,-500.0,0.00039514,30]
[423625273,1780263072000,-500.0,0.00039514,30]
[423625279,1780263072000,-2000.0,0.00039514,7]
[423625266,1780263072000,-605.49915018,0.00039514,30]
[423625280,1780263072000,-2000.0,0.00039514,30]
[423625259,1780263072000,-500.0,0.00039514,30]
[423625261,1780263072000,-500.0,0.00039514,30]
[423625262,1780263072000,-1500.0,0.00039514,30]
[423625267,1780263072000,-251.0,0.00039514,30]
[423625264,1780263072000,-520.0,0.00039514,30]
[423625265,1780263072000,-151.0,0.00039514,30]
[423625274,1780263072000,-500.0,0.00039514,30]
[423625316,1780263073000,-370.03203289,0.0002108,2]
[423625314,1780263073000,-398.23705892,0.00011099,2]
[423625315,1780263073000,-49404.61616174,0.00011099,2]
[423625322,1780263073000,-151.0,0.00038356,30]
[423625319,1780263073000,-189.322484,0.00032137,7]
[423625325,1780263073000,-151.0,0.00038356,30]
[423625308,1780263073000,-362.62154501,0.00039547,120]
[423625312,1780263073000,-293.99386438,0.00011099,2]
[423625313,1780263073000,-1136.24390472,0.00011099,2]
[423625310,1780263073000,-1478.80776274,0.00039548,20]
[423625309,1780263073000,-2173650.70868555,0.00039548,20]
[423625307,1780263073000,-2000.0,0.00039539,115]
[423625326,1780263073000,-261.674456,0.00038356,30]
[423625323,1780263073000,-168.67606,0.00038356,30]
[423625318,1780263073000,-189.322484,0.00027397,2]
[423625311,1780263073000,-850.9916963,0.00039548,20]
[423625324,1780263073000,-151.0,0.00038356,30]
[423625339,1780263073000,-269483.21530711,0.00039548,20]
[423625337,1780263073000,-300.0,0.00035606,2]
[423625338,1780263073000,-189.322483,0.00038995,30]
[423625335,1780263073000,-3183.34772619,0.00027397,10]
[423625333,1780263073000,-347.22227381,0.00027397,10]
[423625334,1780263073000,-3317.55,0.00027397,10]
[423625336,1780263073000,-300.0,0.00035606,2]
[423625321,1780263073000,-300.0,0.00035606,2]
[423625330,1780263073000,-189.322484,0.00036887,7]
[423625332,1780263073000,-4074.13518957,0.00039548,20]
[423625328,1780263073000,-1823174.963088,0.00039548,20]
[423625331,1780263073000,-595.151586,0.000393,29]
[423625327,1780263073000,-189.322484,0.00038995,30]
[423625317,1780263073000,-189.322484,0.00027397,2]
[423625320,1780263073000,-300.0,0.00035606,2]
[423625329,1780263073000,-10000.0,0.00039548,20]
[423625341,1780263074000,-5309.38,0.00011099,2]
[423625342,1780263074000,-2129.93,0.00011099,2]
[423625340,1780263074000,-1239.4386276,0.00011099,2]
[423625343,1780263074000,-510.0,8.632e-05,2]
[423625344,1780263296000,2000.0,0.00028883,120]
[423625346,1780263454000,-150.0,7.694e-05,2]
[423625347,1780263465000,50.0,7.384e-05,2]
[423625348,1780263465000,127.41,7.384e-05,2]
[423625349,1780263605000,200.60930003,0.0002678,120]
[423625350,1780263661000,729.0,0.0003013,120]
[423625351,1780263663000,3122.0,0.0003013,120]
[423625352,1780263664000,15124.0,0.0003013,120]
[423625353,1780263675000,1441.65,7.517e-05,2]
[423625354,1780263683000,486.4,0.00029137,120]
[423625355,1780263723000,730.0,0.0003013,120]
[423625356,1780263725000,1987.0,0.0003013,120]
[423625358,1780263726000,5359.0,0.0003013,120]
[423625357,1780263726000,696.0,0.0003013,120]
[423625359,1780263727000,16639.0,0.0003013,120]
[423625360,1780263752000,150.0,7.598e-05,2]
[423625361,1780263761000,165.97,7.685e-05,2]
[423625362,1780263782000,153.0,0.0003013,120]
[423625363,1780263784000,1568.0,0.0003013,120]
[423625364,1780263785000,12551.0,0.0003013,120]
[423625365,1780263786000,14841.0,0.0003013,120]
[423625366,1780263827000,150.0,7.932e-05,7]
[423625367,1780263842000,8188.0,0.0003013,120]
[423625368,1780263851000,2337.91,7.44e-05,2]
[423625369,1780263901000,8179.0,0.0003013,120]
[423625370,1780263945000,318.81497897,7.441e-05,2]
[423625372,1780264067000,150.59612134,8.329e-05,7]
[423625371,1780264067000,150.0,8.329e-05,7]
[423625373,1780264084000,232.97112715,0.0003013,120]
[423625381,1780264104000,417.62916007,7.247e-05,2]
[423625380,1780264104000,417.62916007,7.247e-05,2]
[423625376,1780264104000,417.62916007,7.247e-05,2]
[423625378,1780264104000,417.62916007,7.247e-05,2]
[423625379,1780264104000,417.62916007,7.247e-05,2]
[423625377,1780264104000,417.62916007,7.247e-05,2]
[423625375,1780264104000,417.62916007,7.247e-05,2]
[423625374,1780264104000,208.51723181,7.247e-05,2]
[423625382,1780264116000,150.0,6.984e-05,2]
[423625384,1780264122000,298.18,7.303e-05,7]
[423625383,1780264122000,200.0,6.938e-05,2]
[423625385,1780264130000,1000.0,7.183e-05,2]
[423625386,1780264166000,4457.87,7.191e-05,2]
[423625387,1780264201000,270.0,7.199e-05,2]
[423625388,1780264201000,300.0,7.199e-05,2]
[423625389,1780264201000,1200.0,7.199e-05,2]
[423625392,1780264210000,-1049.6286477,7.247e-05,2]
[423625390,1780264210000,-802241.78939231,7.2e-05,2]
[423625391,1780264210000,-6682.86,7.2e-05,2]
[423625419,1780264232000,-182.0,8.045e-05,2]
[423625413,1780264232000,-240.0,7.919e-05,2]
[423625415,1780264232000,-150.0,7.932e-05,2]
[423625417,1780264232000,-182.0,7.971e-05,2]
[423625416,1780264232000,-2484.951491,7.945e-05,2]
[423625414,1780264232000,-1680.0,7.919e-05,2]
[423625410,1780264232000,-182.0,7.824e-05,2]
[423625411,1780264232000,-500.0,7.833e-05,2]
[423625412,1780264232000,-182.0,7.898e-05,2]
[423625409,1780264232000,-182.0,7.75e-05,2]
[423625407,1780264232000,-162.98507532,7.704e-05,2]
[423625405,1780264232000,-55.01492468,7.671e-05,2]
[423625406,1780264232000,-182.0,7.676e-05,2]
[423625402,1780264232000,-182.0,7.529e-05,2]
[423625399,1780264232000,-250.0,7.422e-05,2]
[423625403,1780264232000,-182.0,7.602e-05,2]
[423625418,1780264232000,-1290.9612,8.002e-05,2]
[423625397,1780264232000,-267.59818152,7.382e-05,2]
[423625400,1780264232000,-3958.31502103,7.441e-05,2]
[423625404,1780264232000,-253.33507532,7.671e-05,2]
[423625398,1780264232000,-200.7737024,7.403e-05,2]
[423625396,1780264232000,-200.0,7.36e-05,2]
[423625408,1780264232000,-87.01492468,7.704e-05,2]
[423625420,1780264232000,-193.0,8.096e-05,2]
[423625401,1780264232000,-182.0,7.455e-05,2]
[423625423,1780264232000,-537.91466,8.178e-05,2]
[423625421,1780264232000,-183.0,8.119e-05,2]
[423625459,1780264232000,-6348.41672928,8.502e-05,2]
[423625458,1780264232000,-319.63272907,8.502e-05,2]
[423625453,1780264232000,-299.93596476,8.502e-05,2]
[423625448,1780264232000,-724.74671878,8.501e-05,2]
[423625450,1780264232000,-500.0,8.502e-05,2]
[423625451,1780264232000,-423.79137827,8.502e-05,2]
[423625449,1780264232000,-506.7786382,8.501e-05,2]
[423625447,1780264232000,-724.74671878,8.501e-05,2]
[423625443,1780264232000,-366.53,8.472e-05,2]
[423625445,1780264232000,-1000.0,8.501e-05,2]
[423625439,1780264232000,-1001.47110534,8.459e-05,2]
[423625455,1780264232000,-511.09058855,8.502e-05,2]
[423625437,1780264232000,-150.0,8.457e-05,2]
[423625435,1780264232000,-1441.65,8.457e-05,2]
[423625432,1780264232000,-366.53,8.426e-05,2]
[423625429,1780264232000,-366.53,8.38e-05,2]
[423625428,1780264232000,-366.53,8.335e-05,2]
[423625431,1780264232000,-4230.52386648,8.403e-05,2]
[423625426,1780264232000,-366.53,8.289e-05,2]
[423625427,1780264232000,-165.97,8.319e-05,2]
[423625425,1780264232000,-366.53,8.243e-05,2]
[423625424,1780264232000,-10489.86,8.219e-05,2]
[423625422,1780264232000,-250.0,8.144e-05,2]
[423625441,1780264232000,-181.64527902,8.46e-05,2]
[423625462,1780264233000,-37309.82139654,8.502e-05,2]
[423625463,1780264233000,-150.0,8.502e-05,2]
[423625465,1780264233000,-103099.33482681,8.503e-05,2]
[423625464,1780264233000,-485896.3463438,8.503e-05,2]
[423625467,1780264233000,-8475.41891671,8.503e-05,2]
[423625468,1780264233000,-5941.17315993,8.503e-05,2]
[423625469,1780264233000,-604.47236755,8.503e-05,2]
[423625466,1780264233000,-44902.87993788,8.503e-05,2]
[423625500,1780264238000,-366.53,8.791e-05,2]
[423625505,1780264238000,-165.97,8.953e-05,2]
[423625503,1780264238000,-500.0,8.911e-05,2]
[423625499,1780264238000,-500.0,8.776e-05,2]
[423625498,1780264238000,-366.53,8.746e-05,2]
[423625494,1780264238000,-366.53,8.654e-05,2]
[423625497,1780264238000,-2351.0,8.711e-05,2]
[423625496,1780264238000,-366.53,8.7e-05,2]
[423625492,1780264238000,-366.53,8.609e-05,2]
[423625491,1780264238000,-366.53,8.563e-05,2]
[423625490,1780264238000,-33237.5546,8.532e-05,2]
[423625493,1780264238000,-177.41,8.615e-05,2]
[423625504,1780264238000,-366.53,8.928e-05,2]
[423625488,1780264238000,-851080.37444732,8.503e-05,2]
[423625495,1780264238000,-3192.89,8.677e-05,2]
[423625502,1780264238000,-366.53,8.883e-05,2]
[423625489,1780264238000,-366.53,8.517e-05,2]
[423625506,1780264238000,-366.53,8.974e-05,2]
[423625501,1780264238000,-366.53,8.837e-05,2]
[423625521,1780264238000,-433.0,0.00010233,2]
[423625518,1780264238000,-380.52974895,9.872e-05,2]
[423625519,1780264238000,-194.38132777,0.0001,2]